lending/lending_fUSD_20240401
["ID","MTS","AMOUNT","RATE_DAILY","PERIOD"]
[321242848,1712013040836,-1063.97060893,0.00055612,4]
[321242849,1712013040846,-1401.79529549,0.00055612,4]
[321242850,1712013040858,-155.45988946,0.00055612,4]
[321242851,1712013040868,-500.0,0.00055612,120]
[321242852,1712013040877,-500.0,0.00055612,120]
[321242853,1712013040889,-500.0,0.00055612,120]
[321242854,1712013040899,-500.0,0.00055612,120]
[321242855,1712013040909,-500.0,0.00055612,120]
[321242856,1712013040920,-2680.62,0.00055612,120]
[321242857,1712013040929,-500.0,0.00055612,120]
[321242858,1712013040940,-500.0,0.00055612,120]
[321242859,1712013040950,-500.0,0.00055612,120]
[321242860,1712013040959,-500.0,0.00055612,120]
[321242861,1712013040970,-500.0,0.00055612,120]
[321242862,1712013040981,-500.0,0.00055612,120]
[321242863,1712013040991,-500.0,0.00055612,120]
[321242864,1712013041001,-500.0,0.00055612,120]
[321242865,1712013041011,-500.0,0.00055612,120]
[321242866,1712013041022,-636.53,0.00055612,120]
[321242867,1712013041033,-500.0,0.00055612,120]
[321242868,1712013041043,-562.67,0.00055612,120]
[321242869,1712013041054,-188.69,0.00055612,120]
[321242870,1712013041063,-500.0,0.00055612,120]
[321242871,1712013041073,-500.0,0.00055612,120]
[321242872,1712013041083,-500.0,0.00055612,120]
[321242873,1712013041094,-1544.32,0.00055612,120]
[321242874,1712013041105,-351.54,0.00055612,120]
[321242875,1712013041114,-500.0,0.00055612,120]
[321242876,1712013041124,-589.24,0.00055612,120]
[321242877,1712013041134,-500.0,0.00055612,120]
[321242878,1712013041143,-611.73889752,0.00055612,120]
[321242879,1712013041155,-794.89,0.00055612,120]
[321242880,1712013041165,-500.0,0.00055612,120]
[321242881,1712013041175,-500.0,0.00055612,120]
[321242882,1712013041185,-2261.45,0.00055612,120]
[321242883,1712013041195,-500.0,0.00055612,120]
[321242884,1712013041205,-500.0,0.00055612,120]
[321242885,1712013041215,-500.0,0.00055612,120]
[321242886,1712013041224,-500.0,0.00055612,120]
[321242887,1712013041234,-529.61,0.00055612,120]
[321242888,1712013041243,-500.0,0.00055612,21]
[321242889,1712013041253,-500.0,0.00055612,120]
[321242890,1712013041263,-500.0,0.00055612,120]
[321242891,1712013041273,-355.5031561,0.00055612,120]
[321242892,1712013041283,-206.4928723,0.00055613,4]
[321242893,1712013041291,-155.0,0.00055613,4]
[321242894,1712013041301,-4704.44,0.00055613,4]
[321242895,1712013041311,-500.0,0.00055613,120]
[321242896,1712013041321,-500.0,0.00055613,120]
[321242897,1712013041330,-552.76,0.00055613,120]
[321242898,1712013041339,-500.0,0.00055613,120]
[321242899,1712013041348,-160.07,0.00055613,120]
[321242900,1712013041357,-500.0,0.00055613,120]
[321242901,1712013041367,-500.0,0.00055613,7]
[321242902,1712013041376,-500.0,0.00055613,120]
[321242903,1712013041385,-500.0,0.00055613,120]
[321242904,1712013041394,-500.0,0.00055613,120]
[321242905,1712013041403,-500.0,0.00055613,120]
[321242906,1712013041413,-301.68,0.00055613,120]
[321242907,1712013041423,-236.30798954,0.00055613,120]
[321242908,1712013041433,-500.0,0.00055613,120]
[321242909,1712013041444,-500.0,0.00055613,120]
[321242910,1712013041453,-1795.34,0.00055613,120]
[321242911,1712013041464,-500.0,0.00055613,120]
[321242912,1712013041478,-500.0,0.00055613,120]
[321242913,1712013041490,-500.0,0.00055613,120]
[321242914,1712013041503,-500.0,0.00055613,120]
[321242915,1712013041514,-730.54,0.00055613,120]
[321242916,1712013041527,-676.46,0.00055613,120]
[321242917,1712013041538,-500.0,0.00055613,120]
[321242918,1712013041547,-500.0,0.00055613,120]
[321242919,1712013041559,-500.0,0.00055613,120]
[321242920,1712013041569,-500.0,0.00055613,120]
[321242921,1712013041582,-500.0,0.00055613,120]
[321242922,1712013041595,-500.0,0.00055613,120]
[321242923,1712013041605,-500.0,0.00055613,120]
[321242924,1712013041616,-500.0,0.00055613,120]
[321242925,1712013041627,-1358.02,0.00055613,120]
[321242926,1712013041639,-500.0,0.00055613,120]
[321242927,1712013041650,-523.05,0.00055613,120]
[321242928,1712013041661,-519.91,0.00055613,120]
[321242929,1712013041673,-502.87,0.00055613,7]
[321242930,1712013041685,-500.0,0.00055613,120]
[321242931,1712013041695,-500.0,0.00055613,120]
[321242932,1712013041705,-555.18,0.00055613,120]
[321242933,1712013041715,-500.0,0.00055613,120]
[321242934,1712013041727,-500.0,0.00055613,120]
[321242935,1712013041738,-520.37,0.00055613,120]
[321242936,1712013041749,-500.0,0.00055613,120]
[321242937,1712013041761,-500.0,0.00055613,120]
[321242938,1712013041771,-500.0,0.00055613,120]
[321242939,1712013041782,-500.0,0.00055613,120]
[321242940,1712013041793,-500.0,0.00055613,120]
[321242941,1712013041805,-500.0,0.00055613,120]
[321242942,1712013041818,-500.0,0.00055613,120]
[321242943,1712013041830,-500.0,0.00055613,120]
[321242944,1712013041842,-500.0,0.00055613,120]
[321242945,1712013041854,-500.0,0.00055613,120]
[321242946,1712013041865,-500.0,0.00055613,120]
[321242947,1712013041876,-500.0,0.00055613,120]
[321242948,1712013041888,-500.0,0.00055613,120]
[321242949,1712013041900,-500.0,0.00055613,120]
[321242950,1712013041912,-245.72,0.00055613,120]
[321242951,1712013041922,-500.0,0.00055613,120]
[321242952,1712013041932,-500.0,0.00055613,120]
[321242953,1712013041941,-500.0,0.00055613,120]
[321242954,1712013041952,-500.0,0.00055613,120]
[321242955,1712013041962,-500.0,0.00055613,120]
[321242956,1712013041972,-500.0,0.00055613,120]
[321242957,1712013041984,-1209.73,0.00055613,120]
[321242958,1712013041996,-1722.26626395,0.00055614,30]
[321242959,1712013042006,-500.0,0.00055616,3]
[321242960,1712013042016,-500.0,0.00055616,120]
[321242961,1712013042026,-343.34,0.00055616,120]
[321242962,1712013042036,-618.22,0.00055616,120]
[321242963,1712013042045,-500.0,0.00055616,120]
[321242964,1712013042055,-508.4,0.00055616,120]
[321242965,1712013042065,-559.0,0.00055616,120]
[321242966,1712013042075,-500.0,0.00055616,120]
[321242967,1712013042087,-353.4372722,0.00055616,120]
[321242968,1712013042098,-394.2,0.00055616,120]
[321242969,1712013042106,-273.56,0.00055616,120]
[321242970,1712013042116,-500.0,0.00055616,120]
[321242971,1712013042125,-500.0,0.00055616,120]
[321242972,1712013042134,-500.0,0.00055616,120]
[321242973,1712013042143,-500.0,0.00055616,120]
[321242974,1712013042154,-500.0,0.00055616,120]
[321242975,1712013042163,-500.0,0.00055616,120]
[321242976,1712013042173,-1112.66,0.00055616,120]
[321242977,1712013042182,-500.0,0.00055616,120]
[321242978,1712013042192,-513.43,0.00055616,120]
[321242979,1712013042205,-500.0,0.00055616,120]
[321242980,1712013042218,-500.0,0.00055616,120]
[321242981,1712013042230,-514.34,0.00055616,120]
[321242982,1712013042243,-500.0,0.00055616,120]
[321242983,1712013042255,-500.0,0.00055616,120]
[321242984,1712013042268,-500.0,0.00055616,120]
[321242985,1712013042278,-369.59,0.00055616,120]
[321242986,1712013042289,-500.0,0.00055616,120]
[321242987,1712013042303,-500.0,0.00055616,120]
[321242988,1712013042317,-500.0,0.00055616,120]
[321242989,1712013042330,-4015.03,0.00055616,120]
[321242990,1712013042344,-500.0,0.00055616,120]
[321242991,1712013042358,-500.0,0.00055616,120]
[321242992,1712013042371,-170.34,0.00055629,2]
[321242993,1712013042386,-200.0,0.00055748,15]
[321242994,1712013042398,-618.74,0.00055886,120]
[321242995,1712013042415,-500.0,0.00055886,120]
[321242996,1712013042427,-500.0,0.00055886,120]
[321242997,1712013042438,-500.0,0.00055886,120]
[321242998,1712013042451,-500.0,0.00055886,120]
[321242999,1712013042465,-2680.62,0.00055886,120]
[321243000,1712013042479,-500.0,0.00055886,120]
[321243001,1712013042492,-500.0,0.00055886,120]
[321243002,1712013042504,-500.0,0.00055886,120]
[321243003,1712013042516,-500.0,0.00055886,120]
[321243004,1712013042528,-500.0,0.00055886,120]
[321243005,1712013042540,-500.0,0.00055886,120]
[321243006,1712013042551,-500.0,0.00055886,120]
[321243007,1712013042564,-500.0,0.00055886,120]
[321243008,1712013042574,-500.0,0.00055886,120]
[321243009,1712013042584,-636.53,0.00055886,120]
[321243010,1712013042595,-500.0,0.00055886,120]
[321243011,1712013042609,-562.67,0.00055886,120]
[321243012,1712013042622,-500.0,0.00055886,120]
[321243013,1712013042633,-500.0,0.00055886,120]
[321243014,1712013042646,-500.0,0.00055886,120]
[321243015,1712013042661,-1544.32,0.00055886,120]
[321243016,1712013042672,-500.0,0.00055886,120]
[321243017,1712013042684,-589.24,0.00055886,120]
[321243018,1712013042695,-500.0,0.00055886,120]
[321243019,1712013042706,-794.89,0.00055886,120]
[321243020,1712013042717,-500.0,0.00055886,120]
[321243021,1712013042728,-500.0,0.00055886,120]
[321243022,1712013042741,-2261.45,0.00055886,120]
[321243023,1712013042753,-500.0,0.00055886,120]
[321243024,1712013042765,-500.0,0.00055886,120]
[321243025,1712013042777,-500.0,0.00055886,120]
[321243026,1712013042790,-500.0,0.00055886,120]
[321243027,1712013042803,-529.61,0.00055886,120]
[321243028,1712013042818,-500.0,0.00055886,21]
[321243029,1712013042831,-500.0,0.00055886,120]
[321243030,1712013042842,-500.0,0.00055886,120]
[321243031,1712013042854,-151.0,0.00055886,120]
[321243032,1712013042864,-151.0,0.00055886,7]
[321243033,1712013042873,-151.0,0.00055886,120]
[321243034,1712013042884,-500.0,0.00055887,120]
[321243035,1712013042895,-500.0,0.00055887,120]
[321243036,1712013042908,-500.0,0.00055887,120]
[321243037,1712013042920,-500.0,0.00055887,7]
[321243038,1712013042932,-500.0,0.00055887,120]
[321243039,1712013042942,-313.97,0.00055887,120]
[321243040,1712013042953,-500.0,0.00055887,120]
[321243041,1712013042965,-500.0,0.00055887,120]
[321243042,1712013042976,-163.98990985,0.00055887,120]
[321243043,1712013042987,-1795.34,0.00055887,120]
[321243044,1712013042997,-500.0,0.00055887,120]
[321243045,1712013043008,-500.0,0.00055887,120]
[321243046,1712013043018,-500.0,0.00055887,120]
[321243047,1712013043028,-500.0,0.00055887,120]
[321243048,1712013043039,-730.54,0.00055887,120]
[321243049,1712013043050,-676.46,0.00055887,120]
[321243050,1712013043060,-500.0,0.00055887,120]
[321243051,1712013043071,-500.0,0.00055887,120]
[321243052,1712013043081,-500.0,0.00055887,120]
[321243053,1712013043092,-500.0,0.00055887,120]
[321243054,1712013043102,-500.0,0.00055887,120]
[321243055,1712013043113,-500.0,0.00055887,120]
[321243056,1712013043124,-1358.02,0.00055887,120]
[321243057,1712013043135,-500.0,0.00055887,120]
[321243058,1712013043145,-523.05,0.00055887,120]
[321243059,1712013043156,-519.91,0.00055887,120]
[321243060,1712013043167,-502.87,0.00055887,7]
[321243061,1712013043178,-500.0,0.00055887,120]
[321243062,1712013043188,-500.0,0.00055887,120]
[321243063,1712013043199,-555.18,0.00055887,120]
[321243064,1712013043209,-500.0,0.00055887,120]
[321243065,1712013043220,-407.4,0.00055887,120]
[321243066,1712013043230,-520.37,0.00055887,120]
[321243067,1712013043241,-500.0,0.00055887,120]
[321243068,1712013043251,-500.0,0.00055887,120]
[321243069,1712013043262,-500.0,0.00055887,120]
[321243070,1712013043272,-500.0,0.00055887,120]
[321243071,1712013043284,-500.0,0.00055887,120]
[321243072,1712013043295,-500.0,0.00055887,120]
[321243073,1712013043306,-500.0,0.00055887,120]
[321243074,1712013043316,-248.74,0.00055887,120]
[321243075,1712013043327,-500.0,0.00055887,120]
[321243076,1712013043338,-500.0,0.00055887,120]
[321243077,1712013043348,-500.0,0.00055887,120]
[321243078,1712013043358,-500.0,0.00055887,120]
[321243079,1712013043369,-621.56,0.00055887,120]
[321243080,1712013043379,-500.0,0.00055887,120]
[321243081,1712013043389,-500.0,0.00055887,120]
[321243083,1712013043400,-229.96,0.00055887,120]
[321243085,1712013043411,-500.0,0.00055887,120]
[321243087,1712013043421,-500.0,0.00055887,120]
[321243089,1712013043432,-500.0,0.00055887,120]
[321243091,1712013043442,-256.22,0.00055887,120]
[321243094,1712013043453,-1209.73,0.00055887,120]
[321243096,1712013043463,-192.84594705,0.00055888,4]
[321243098,1712013043473,-464.57973632,0.00055888,4]
[321243100,1712013043485,-500.0,0.0005589,3]
[321243103,1712013043495,-277.39,0.0005589,120]
[321243106,1712013043505,-579.16,0.0005589,120]
[321243107,1712013043516,-231.3,0.0005589,120]
[321243109,1712013043528,-500.0,0.0005589,120]
[321243110,1712013043539,-403.16,0.0005589,120]
[321243111,1712013043551,-500.0,0.0005589,120]
[321243112,1712013043563,-280.11,0.0005589,120]
[321243113,1712013043574,-500.0,0.0005589,120]
[321243114,1712013043586,-500.0,0.0005589,120]
[321243115,1712013043596,-1112.66,0.0005589,120]
[321243116,1712013043606,-500.0,0.0005589,120]
[321243117,1712013043617,-513.43,0.0005589,120]
[321243118,1712013043627,-500.0,0.0005589,120]
[321243119,1712013043638,-500.0,0.0005589,120]
[321243120,1712013043648,-514.34,0.0005589,120]
[321243121,1712013043659,-500.0,0.0005589,120]
[321243122,1712013043670,-500.0,0.0005589,120]
[321243123,1712013043681,-500.0,0.0005589,120]
[321243124,1712013043691,-500.0,0.0005589,120]
[321243125,1712013043702,-500.0,0.0005589,120]
[321243126,1712013043713,-4015.03,0.0005589,120]
[321243127,1712013043725,-500.0,0.0005589,120]
[321243128,1712013043737,-500.0,0.0005589,120]
[321243129,1712013043749,-300.0,0.00056,120]
[321243130,1712013043760,-152.07065122,0.0005606,67]
[321243131,1712013043771,-157.040206,0.00056138,116]
[321243132,1712013043782,-386.02956369,0.00056153,14]
[321243133,1712013043794,-157.040206,0.00056158,117]
[321243134,1712013043804,-500.0,0.0005616,120]
[321243135,1712013043819,-500.0,0.0005616,120]
[321243136,1712013043831,-500.0,0.0005616,120]
[321243137,1712013043842,-500.0,0.0005616,120]
[321243138,1712013043854,-2680.62,0.0005616,120]
[321243139,1712013043867,-500.0,0.0005616,120]
[321243140,1712013043879,-500.0,0.0005616,120]
[321243141,1712013043892,-500.0,0.0005616,120]
[321243142,1712013043904,-500.0,0.0005616,120]
[321243143,1712013043915,-1000.0,0.0005616,120]
[321243144,1712013043926,-500.0,0.0005616,120]
[321243145,1712013043937,-500.0,0.0005616,120]
[321243146,1712013043948,-500.0,0.0005616,120]
[321243147,1712013043958,-500.0,0.0005616,120]
[321243148,1712013043968,-500.0,0.0005616,120]
[321243149,1712013043978,-636.53,0.0005616,120]
[321243150,1712013043988,-500.0,0.0005616,120]
[321243151,1712013043997,-562.67,0.0005616,120]
[321243152,1712013044006,-500.0,0.0005616,120]
[321243153,1712013044015,-500.0,0.0005616,120]
[321243154,1712013044025,-500.0,0.0005616,120]
[321243155,1712013044034,-1544.32,0.0005616,120]
[321243156,1712013044045,-500.0,0.0005616,120]
[321243157,1712013044054,-589.24,0.0005616,120]
[321243158,1712013044063,-500.0,0.0005616,120]
[321243159,1712013044279,-794.89,0.0005616,120]
[321243160,1712013044290,-500.0,0.0005616,120]
[321243161,1712013044299,-2261.45,0.0005616,120]
[321243162,1712013044308,-500.0,0.0005616,120]
[321243163,1712013044318,-500.0,0.0005616,120]
[321243164,1712013044328,-500.0,0.0005616,120]
[321243165,1712013044337,-564.69,0.0005616,120]
[321243166,1712013044347,-529.61,0.0005616,120]
[321243167,1712013044356,-500.0,0.0005616,21]
[321243168,1712013044365,-500.0,0.0005616,120]
[321243169,1712013044376,-500.0,0.0005616,120]
[321243170,1712013044388,-849.23993271,0.00056161,2]
[321243171,1712013044398,-1015.77749665,0.00056161,120]
[321243172,1712013044408,-373.36,0.00056161,120]
[321243173,1712013044417,-500.0,0.00056161,120]
[321243174,1712013044427,-500.0,0.00056161,120]
[321243175,1712013044437,-500.0,0.00056161,7]
[321243176,1712013044447,-500.0,0.00056161,120]
[321243177,1712013044456,-500.0,0.00056161,120]
[321243178,1712013044465,-500.0,0.00056161,120]
[321243179,1712013044475,-1795.34,0.00056161,120]
[321243180,1712013044485,-500.0,0.00056161,120]
[321243181,1712013044494,-500.0,0.00056161,120]
[321243182,1712013044505,-500.0,0.00056161,120]
[321243183,1712013044515,-500.0,0.00056161,120]
[321243184,1712013044523,-730.54,0.00056161,120]
[321243185,1712013044534,-676.46,0.00056161,120]
[321243186,1712013044544,-500.0,0.00056161,120]
[321243187,1712013044553,-500.0,0.00056161,120]
[321243188,1712013044563,-500.0,0.00056161,120]
[321243189,1712013044574,-500.0,0.00056161,120]
[321243190,1712013044582,-500.0,0.00056161,120]
[321243191,1712013044590,-500.0,0.00056161,120]
[321243192,1712013044599,-1358.02,0.00056161,120]
[321243193,1712013044608,-500.0,0.00056161,120]
[321243194,1712013044617,-523.05,0.00056161,120]
[321243195,1712013044626,-519.91,0.00056161,120]
[321243196,1712013044635,-502.87,0.00056161,7]
[321243197,1712013044644,-500.0,0.00056161,120]
[321243198,1712013044653,-500.0,0.00056161,120]
[321243199,1712013044664,-555.18,0.00056161,120]
[321243200,1712013044673,-500.0,0.00056161,120]
[321243201,1712013044682,-520.37,0.00056161,120]
[321243202,1712013044691,-500.0,0.00056161,120]
[321243203,1712013044701,-500.0,0.00056161,120]
[321243204,1712013044710,-500.0,0.00056161,120]
[321243205,1712013044719,-500.0,0.00056161,120]
[321243206,1712013044728,-500.0,0.00056161,120]
[321243207,1712013044737,-500.0,0.00056161,120]
[321243208,1712013044746,-500.0,0.00056161,120]
[321243209,1712013044755,-500.0,0.00056161,120]
[321243210,1712013044764,-510.82,0.00056161,120]
[321243211,1712013044773,-500.0,0.00056161,120]
[321243212,1712013044783,-500.0,0.00056161,120]
[321243213,1712013044792,-155.765563,0.00056161,7]
[321243214,1712013044801,-500.0,0.00056161,120]
[321243215,1712013044811,-500.0,0.00056161,120]
[321243216,1712013044824,-500.0,0.00056161,120]
[321243217,1712013044832,-500.0,0.00056161,120]
[321243218,1712013044840,-500.0,0.00056161,120]
[321243219,1712013044849,-1209.73,0.00056161,120]
[321243220,1712013044859,-500.0,0.00056164,3]
[321243221,1712013044869,-500.0,0.00056164,120]
[321243222,1712013044890,-500.0,0.00056164,120]
[321243223,1712013044899,-500.0,0.00056164,120]
[321243224,1712013044909,-500.0,0.00056164,120]
[321243225,1712013044917,-1112.66,0.00056164,120]
[321243226,1712013044926,-500.0,0.00056164,120]
[321243227,1712013044935,-513.43,0.00056164,120]
[321243228,1712013044944,-500.0,0.00056164,120]
[321243229,1712013044953,-500.0,0.00056164,120]
[321243230,1712013044962,-514.34,0.00056164,120]
[321243231,1712013044972,-500.0,0.00056164,120]
[321243232,1712013044982,-500.0,0.00056164,120]
[321243233,1712013044990,-500.0,0.00056164,120]
[321243234,1712013044999,-500.0,0.00056164,120]
[321243235,1712013045009,-229.98,0.00056164,120]
[321243236,1712013045018,-4015.03,0.00056164,120]
[321243237,1712013045027,-500.0,0.00056164,120]
[321243238,1712013045036,-500.0,0.00056164,120]
[321243239,1712013045046,-6011.22046281,0.00056191,2]
[321243240,1712013045055,-9200.77164184,0.00056191,2]
[321243241,1712013045064,-200.0,0.00056305,15]
[321243242,1712013045073,-3000.0,0.00056313,2]
[321243243,1712013045082,-434.15,0.00056365,2]
[321243244,1712013045091,-500.0,0.00056434,120]
[321243245,1712013045101,-500.0,0.00056434,120]
[321243246,1712013045110,-579.47,0.00056434,120]
[321243247,1712013045119,-398.62,0.00056434,120]
[321243248,1712013045129,-2680.62,0.00056434,120]
[321243249,1712013045138,-500.0,0.00056434,120]
[321243250,1712013045147,-500.0,0.00056434,120]
[321243251,1712013045157,-500.0,0.00056434,120]
[321243252,1712013045166,-425.8,0.00056434,120]
[321243253,1712013045175,-500.0,0.00056434,120]
[321243254,1712013045185,-500.0,0.00056434,120]
[321243255,1712013045195,-500.0,0.00056434,120]
[321243256,1712013045204,-500.0,0.00056434,120]
[321243257,1712013045213,-500.0,0.00056434,120]
[321243258,1712013045222,-636.53,0.00056434,120]
[321243259,1712013045231,-500.0,0.00056434,120]
[321243260,1712013045240,-562.67,0.00056434,120]
[321243261,1712013045250,-500.0,0.00056434,120]
[321243262,1712013045260,-500.0,0.00056434,120]
[321243263,1712013045269,-500.0,0.00056434,120]
[321243264,1712013045278,-1544.32,0.00056434,120]
[321243265,1712013045288,-500.0,0.00056434,120]
[321243266,1712013045298,-589.24,0.00056434,120]
[321243267,1712013045308,-500.0,0.00056434,120]
[321243268,1712013045317,-794.89,0.00056434,120]
[321243269,1712013045326,-500.0,0.00056434,120]
[321243270,1712013045337,-2261.45,0.00056434,120]
[321243271,1712013045348,-500.0,0.00056434,120]
[321243272,1712013045358,-500.0,0.00056434,120]
[321243273,1712013045369,-500.0,0.00056434,120]
[321243274,1712013045378,-529.61,0.00056434,120]
[321243275,1712013045388,-500.0,0.00056434,21]
[321243276,1712013045398,-500.0,0.00056434,120]
[321243277,1712013045409,-500.0,0.00056434,120]
[321243278,1712013045420,-500.0,0.00056435,120]
[321243279,1712013045430,-500.0,0.00056435,120]
[321243280,1712013045440,-500.0,0.00056435,7]
[321243281,1712013045449,-615.05,0.00056435,120]
[321243282,1712013045459,-500.0,0.00056435,120]
[321243283,1712013045469,-500.0,0.00056435,120]
[321243284,1712013045478,-1795.34,0.00056435,120]
[321243285,1712013045489,-500.0,0.00056435,120]
[321243286,1712013045499,-500.0,0.00056435,120]
[321243287,1712013045509,-500.0,0.00056435,120]
[321243288,1712013045520,-500.0,0.00056435,120]
[321243289,1712013045531,-730.54,0.00056435,120]
[321243290,1712013045541,-676.46,0.00056435,120]
[321243291,1712013045551,-500.0,0.00056435,120]
[321243292,1712013045562,-500.0,0.00056435,120]
[321243293,1712013045571,-500.0,0.00056435,120]
[321243294,1712013045581,-500.0,0.00056435,120]
[321243295,1712013045591,-500.0,0.00056435,120]
[321243296,1712013045601,-500.0,0.00056435,120]
[321243297,1712013045611,-1358.02,0.00056435,120]
[321243298,1712013045621,-292.32416,0.00056435,120]
[321243299,1712013045630,-523.05,0.00056435,120]
[321243300,1712013045639,-519.91,0.00056435,120]
[321243301,1712013045648,-502.87,0.00056435,7]
[321243302,1712013045657,-500.0,0.00056435,120]
[321243303,1712013045667,-500.0,0.00056435,120]
[321243304,1712013045677,-555.18,0.00056435,120]
[321243305,1712013045688,-500.0,0.00056435,120]
[321243306,1712013045699,-520.37,0.00056435,120]
[321243307,1712013045708,-500.0,0.00056435,120]
[321243308,1712013045718,-500.0,0.00056435,120]
[321243309,1712013045727,-500.0,0.00056435,120]
[321243310,1712013045738,-500.0,0.00056435,120]
[321243311,1712013045748,-500.0,0.00056435,120]
[321243312,1712013045758,-500.0,0.00056435,120]
[321243313,1712013045768,-500.0,0.00056435,120]
[321243314,1712013045779,-625.92,0.00056435,120]
[321243315,1712013045790,-500.0,0.00056435,120]
[321243316,1712013045802,-500.0,0.00056435,120]
[321243317,1712013045816,-500.0,0.00056435,120]
[321243318,1712013045826,-500.0,0.00056435,120]
[321243319,1712013045836,-500.0,0.00056435,120]
[321243320,1712013045847,-500.0,0.00056435,120]
[321243321,1712013045858,-500.0,0.00056435,120]
[321243322,1712013045868,-1209.73,0.00056435,120]
[321243323,1712013045878,-500.0,0.00056438,3]
[321243324,1712013045889,-500.0,0.00056438,120]
[321243325,1712013045899,-500.0,0.00056438,120]
[321243326,1712013045910,-500.0,0.00056438,120]
[321243327,1712013045919,-211.04,0.00056438,120]
[321243328,1712013045929,-1112.66,0.00056438,120]
[321243329,1712013045938,-500.0,0.00056438,120]
[321243330,1712013045951,-513.43,0.00056438,120]
[321243331,1712013045962,-500.0,0.00056438,120]
[321243332,1712013045973,-500.0,0.00056438,120]
[321243333,1712013045983,-514.34,0.00056438,120]
[321243334,1712013045993,-593.08,0.00056438,120]
[321243335,1712013046003,-500.0,0.00056438,120]
[321243336,1712013046013,-500.0,0.00056438,120]
[321243337,1712013046023,-500.0,0.00056438,120]
[321243338,1712013046032,-4015.03,0.00056438,120]
[321243339,1712013046042,-329.57452923,0.00056438,120]
[321243340,1712013046052,-164.73324429,0.00056508,2]
[321243341,1712013046061,-500.0,0.00056708,120]
[321243342,1712013046070,-500.0,0.00056708,120]
[321243343,1712013046080,-2680.62,0.00056708,120]
[321243344,1712013046089,-500.0,0.00056708,120]
[321243345,1712013046098,-500.0,0.00056708,120]
[321243346,1712013046107,-500.0,0.00056708,120]
[321243347,1712013046117,-500.0,0.00056708,120]
[321243348,1712013046126,-500.0,0.00056708,120]
[321243349,1712013046136,-643.59,0.00056708,120]
[321243350,1712013046145,-500.0,0.00056708,120]
[321243351,1712013046154,-500.0,0.00056708,120]
[321243352,1712013046165,-636.53,0.00056708,120]
[321243353,1712013046175,-500.0,0.00056708,120]
[321243354,1712013046183,-562.67,0.00056708,120]
[321243355,1712013046194,-500.0,0.00056708,120]
[321243356,1712013046204,-500.0,0.00056708,120]
[321243357,1712013046213,-500.0,0.00056708,120]
[321243358,1712013046222,-1544.32,0.00056708,120]
[321243359,1712013046231,-500.0,0.00056708,120]
[321243360,1712013046242,-589.24,0.00056708,120]
[321243361,1712013046251,-500.0,0.00056708,120]
[321243362,1712013046261,-794.89,0.00056708,120]